fUSD/lending_fUSD_20240905
["ID","MTS","AMOUNT","RATE_DAILY","PERIOD"]
[337269339,1725561066040,-500.0,0.00014996,2]
[337269340,1725561066053,-1008.11,0.00014996,2]
[337269341,1725561066062,-1008.11,0.00014996,2]
[337269342,1725561066071,-500.0,0.00014996,2]
[337269343,1725561066081,-500.0,0.00014996,2]
[337269344,1725561066090,-500.0,0.00014996,2]
[337269345,1725561066099,-500.0,0.00014996,2]
[337269346,1725561066109,-500.0,0.00014996,2]
[337269347,1725561066119,-500.0,0.00014996,2]
[337269348,1725561066128,-500.0,0.00014996,2]
[337269349,1725561066137,-500.0,0.00014996,2]
[337269350,1725561066147,-799.09,0.00014996,2]
[337269351,1725561066156,-500.0,0.00014996,2]
[337269352,1725561066166,-590.25,0.00014996,2]
[337269353,1725561066175,-970.13,0.00014996,2]
[337269354,1725561066184,-500.0,0.00014996,2]
[337269355,1725561066194,-500.0,0.00014996,2]
[337269356,1725561066203,-872.57,0.00014996,2]
[337269357,1725561066213,-500.0,0.00014996,2]
[337269358,1725561066222,-500.0,0.00014996,2]
[337269359,1725561066232,-951.18,0.00014996,2]
[337269360,1725561066242,-951.18,0.00014996,2]
[337269361,1725561066251,-698.74,0.00014996,2]
[337269362,1725561066260,-715.76,0.00014996,2]
[337269363,1725561066270,-433.92,0.00014996,2]
[337269364,1725561066279,-500.0,0.00014996,2]
[337269365,1725561066289,-500.0,0.00014996,2]
[337269366,1725561066302,-707.68,0.00014996,2]
[337269367,1725561066313,-1222.38,0.00014996,2]
[337269368,1725561066323,-1222.38,0.00014996,2]
[337269369,1725561066334,-500.0,0.00014996,2]
[337269370,1725561066344,-500.0,0.00014996,2]
[337269371,1725561066353,-513.02,0.00014996,2]
[337269372,1725561066363,-500.0,0.00014996,2]
[337269373,1725561066373,-500.01,0.00014996,2]
[337269374,1725561066383,-500.01,0.00014996,2]
[337269375,1725561066392,-500.0,0.00014996,2]
[337269376,1725561066401,-500.0,0.00014996,2]
[337269377,1725561066410,-500.0,0.00014996,2]
[337269378,1725561066419,-500.0,0.00014996,2]
[337269379,1725561066428,-902.73,0.00014996,2]
[337269380,1725561066438,-500.0,0.00014996,2]
[337269381,1725561066448,-902.73,0.00014996,2]
[337269382,1725561066457,-500.0,0.00014996,2]
[337269383,1725561066467,-500.0,0.00014996,2]
[337269384,1725561066476,-500.0,0.00014996,2]
[337269385,1725561066485,-578.91,0.00014996,2]
[337269386,1725561066495,-578.91,0.00014996,2]
[337269387,1725561066504,-575.86,0.00014996,2]
[337269388,1725561066514,-789.73,0.00014996,2]
[337269389,1725561066527,-500.0,0.00014996,2]
[337269390,1725561066537,-789.73,0.00014996,2]
[337269391,1725561066546,-500.0,0.00014996,2]
[337269392,1725561066562,-12915.97,0.00014996,2]
[337269393,1725561066578,-500.0,0.00014996,2]
[337269394,1725561066587,-500.0,0.00014996,2]
[337269395,1725561066596,-524.35,0.00014996,2]
[337269396,1725561066605,-200.9,0.00014996,2]
[337269397,1725561066615,-2983.37,0.00014996,2]
[337269398,1725561066624,-500.0,0.00014996,2]
[337269399,1725561066633,-2129.35,0.00014996,2]
[337269400,1725561066643,-500.0,0.00014996,2]
[337269401,1725561066652,-500.0,0.00014996,2]
[337269402,1725561066662,-500.0,0.00014996,2]
[337269403,1725561066672,-500.0,0.00014996,2]
[337269404,1725561066681,-500.0,0.00014996,2]
[337269405,1725561066691,-500.0,0.00014996,2]
[337269406,1725561066700,-500.0,0.00014996,2]
[337269407,1725561066709,-6707.91,0.00014996,2]
[337269408,1725561066718,-500.0,0.00014996,2]
[337269409,1725561066727,-3069.75,0.00014996,2]
[337269410,1725561066736,-284.26,0.00014996,2]
[337269411,1725561066746,-500.0,0.00014996,2]
[337269412,1725561066755,-500.0,0.00014996,2]
[337269413,1725561066764,-500.0,0.00014996,2]
[337269414,1725561066773,-500.0,0.00014996,2]
[337269415,1725561066782,-500.0,0.00014996,2]
[337269416,1725561066791,-500.0,0.00014996,2]
[337269417,1725561066805,-500.0,0.00014996,2]
[337269418,1725561066814,-500.0,0.00014996,2]
[337269419,1725561066823,-1596.22,0.00014996,2]
[337269420,1725561066833,-1207.17,0.00014996,2]
[337269421,1725561066842,-1207.17,0.00014996,2]
[337269422,1725561066852,-1207.17,0.00014996,2]
[337269423,1725561066861,-1207.17,0.00014996,2]
[337269424,1725561066870,-831.73,0.00014996,2]
[337269425,1725561066879,-831.73,0.00014996,2]
[337269426,1725561066889,-642.17,0.00014996,2]
[337269427,1725561066898,-851.1,0.00014996,2]
[337269428,1725561066907,-851.1,0.00014996,2]
[337269429,1725561066917,-1060.02,0.00014996,2]
[337269430,1725561066926,-23273.8,0.00014996,2]
[337269431,1725561066935,-963.07,0.00014996,2]
[337269432,1725561066944,-500.0,0.00014996,2]
[337269433,1725561066954,-500.0,0.00014996,2]
[337269434,1725561066964,-7139.75,0.00014996,2]
[337269435,1725561066974,-3375.0,0.00014996,2]
[337269436,1725561066984,-3375.0,0.00014996,2]
[337269437,1725561066994,-3375.0,0.00014996,2]
[337269438,1725561067003,-3375.0,0.00014996,2]
[337269439,1725561067012,-2299.74,0.00014996,2]
[337269440,1725561067022,-1790.61,0.00014996,2]
[337269441,1725561067031,-1790.61,0.00014996,2]
[337269442,1725561067041,-1790.61,0.00014996,2]
[337269443,1725561067052,-1790.61,0.00014996,2]
[337269444,1725561067061,-1790.61,0.00014996,2]
[337269445,1725561067070,-6932.94,0.00014996,2]
[337269446,1725561067079,-6932.94,0.00014996,2]
[337269447,1725561067088,-6932.94,0.00014996,2]
[337269448,1725561067097,-3304.68,0.00014996,2]
[337269449,1725561067106,-6932.94,0.00014996,2]
[337269450,1725561067115,-3000.7,0.00014996,2]
[337269451,1725561067124,-500.0,0.00014996,2]
[337269452,1725561067133,-500.0,0.00014996,2]
[337269453,1725561067142,-500.0,0.00014996,2]
[337269454,1725561067152,-500.0,0.00014996,2]
[337269455,1725561067161,-500.0,0.00014996,2]
[337269456,1725561067170,-4458.5,0.00014996,2]
[337269457,1725561067180,-837.63,0.00014996,2]
[337269458,1725561067189,-837.63,0.00014996,2]
[337269459,1725561067198,-837.63,0.00014996,2]
[337269460,1725561067207,-837.63,0.00014996,2]
[337269461,1725561067216,-500.0,0.00014996,2]
[337269462,1725561067226,-500.0,0.00014996,2]
[337269463,1725561067235,-3430.41,0.00014996,2]
[337269464,1725561067244,-1031.09,0.00014996,2]
[337269465,1725561067254,-3565.08,0.00014996,2]
[337269466,1725561067264,-3565.08,0.00014996,2]
[337269467,1725561067273,-3565.08,0.00014996,2]
[337269468,1725561067283,-3565.08,0.00014996,2]
[337269469,1725561067293,-500.0,0.00014996,2]
[337269470,1725561067303,-1473.65296408,0.00014996,2]
[337269471,1725561067689,-462.54,0.00014794,2]
[337269472,1725561067700,-151.0,0.00014883,2]
[337269473,1725561067711,-151.0,0.00014884,2]
[337269474,1725561067722,-151.0,0.00014894,2]
[337269475,1725561067732,-151.0,0.00014895,2]
[337269476,1725561067743,-151.0,0.00014965,2]
[337269477,1725561067753,-500.0,0.00014993,2]
[337269478,1725561067763,-500.0,0.00014994,2]
[337269479,1725561067774,-500.0,0.00014994,2]
[337269480,1725561067784,-500.0,0.00014995,2]
[337269481,1725561067794,-974.41703592,0.00014996,2]
[337269482,1725561067940,-2226.65992889,0.00014996,2]
[337269483,1725561067953,-221.41007111,0.00014996,2]
[337269484,1725561067962,-2448.07,0.00014996,2]
[337269485,1725561067971,-2448.07,0.00014996,2]
[337269486,1725561067980,-500.0,0.00014996,2]
[337269487,1725561067992,-6967.50449518,0.00014996,2]
[337269488,1725561068280,-151.0,0.00014975,2]
[337269489,1725561068291,-3260.66550482,0.00014996,2]
[337269490,1725561068302,-3256.3079136,0.00014996,2]
[337269491,1725561068314,-1204.7820864,0.00014996,2]
[337269492,1725561068324,-701.98220416,0.00014996,2]
[337269493,1725561068416,-164.72161916,0.00014705,2]
[337269494,1725561068425,-151.0,0.00014883,2]
[337269495,1725561068435,-151.0,0.00014884,2]
[337269496,1725561068444,-151.0,0.00014984,2]
[337269497,1725561068453,-151.0,0.00014984,2]
[337269498,1725561068463,-151.0,0.00014985,2]
[337269499,1725561068472,-151.0,0.00014985,2]
[337269500,1725561068482,-3759.10779584,0.00014996,2]
[337269501,1725561068492,-4461.09,0.00014996,2]
[337269502,1725561068502,-2281.55732404,0.00014996,2]
[337269503,1725561068526,-1702.73103001,0.00014996,2]
[337269504,1725561090670,157.87,0.00010959,2]
[337269533,1725561315493,680.01,0.00012006,2]
[337269582,1725561835211,646.0,0.00011892,2]
[337269604,1725562231503,-420.1107,0.00013688,2]
[337269606,1725562231513,-200.0,0.00013758,2]
[337269608,1725562231522,-300.0,0.00013774,2]
[337269610,1725562231532,-4790.87678693,0.00013775,2]
[337269611,1725562231543,-1675.56026644,0.00013775,2]
[337269612,1725562231558,-3989.45713517,0.00013775,2]
[337269613,1725562231569,-13444.10581146,0.00013775,2]
[337269614,1725562231579,-50.95311182,0.00013781,2]
[337269615,1725562231594,-239.44688818,0.00013781,2]
[337269616,1725562231603,-250.0,0.0001379,2]
[337269618,1725562231612,-250.0,0.00013809,2]
[337269620,1725562231622,-118.71702135,0.00013836,2]
[337269622,1725562231633,-681.28297865,0.00013836,2]
[337269623,1725562231643,-182.66,0.00013901,2]
[337269624,1725562231653,-1490.78964586,0.00013999,2]
[337269625,1725562231664,-453.51,0.00013999,2]
[337269626,1725562231676,-782.83413836,0.00013999,2]
[337269627,1725562231685,-500.0,0.00014,2]
[337269628,1725562231694,-500.0,0.00014,2]
[337269629,1725562231703,-500.0,0.00014,2]
[337269630,1725562231713,-171.97708568,0.00014,2]
[337269631,1725562231724,-328.02291432,0.00014,2]
[337269632,1725562231734,-500.0,0.00014,2]
[337269633,1725562231743,-500.0,0.00014,2]
[337269634,1725562231752,-500.0,0.00014,2]
[337269635,1725562231761,-66.84440131,0.00014,2]
[337269647,1725562237567,-433.15559869,0.00014,2]
[337269648,1725562237576,-500.0,0.00014,2]
[337269649,1725562237586,-500.0,0.00014,2]
[337269650,1725562237596,-500.0,0.00014,2]
[337269651,1725562237605,-500.0,0.00014,2]
[337269652,1725562237615,-500.0,0.00014,2]
[337269653,1725562237624,-500.0,0.00014,2]
[337269654,1725562237634,-500.0,0.00014,2]
[337269655,1725562237643,-500.0,0.00014,2]
[337269656,1725562237653,-500.0,0.00014,2]
[337269657,1725562237662,-500.0,0.00014,2]
[337269658,1725562237671,-500.0,0.00014,2]
[337269659,1725562237682,-500.0,0.00014,2]
[337269660,1725562237694,-500.0,0.00014,2]
[337269661,1725562237703,-500.0,0.00014,2]
[337269662,1725562237713,-500.0,0.00014,2]
[337269663,1725562237723,-500.0,0.00014,2]
[337269664,1725562237732,-500.0,0.00014,2]
[337269665,1725562237741,-500.0,0.00014,2]
[337269666,1725562237750,-500.0,0.00014,2]
[337269667,1725562237759,-500.0,0.00014,2]
[337269668,1725562237770,-500.0,0.00014,2]
[337269669,1725562237779,-500.0,0.00014,2]
[337269670,1725562237789,-500.0,0.00014,2]
[337269671,1725562237802,-500.0,0.00014,2]
[337269672,1725562237812,-500.0,0.00014,2]
[337269673,1725562237822,-500.0,0.00014,2]
[337269674,1725562237833,-500.0,0.00014,2]
[337269675,1725562237843,-500.0,0.00014,2]
[337269676,1725562237853,-500.0,0.00014,2]
[337269677,1725562237863,-500.0,0.00014,2]
[337269678,1725562237872,-500.0,0.00014,2]
[337269679,1725562237882,-500.0,0.00014,2]
[337269680,1725562237891,-500.0,0.00014,2]
[337269681,1725562237906,-500.0,0.00014,2]
[337269682,1725562237916,-500.0,0.00014,2]
[337269683,1725562237925,-500.0,0.00014,2]
[337269684,1725562237934,-500.0,0.00014,2]
[337269685,1725562237944,-500.0,0.00014,2]
[337269686,1725562237955,-500.0,0.00014,2]
[337269687,1725562237967,-500.0,0.00014,2]
[337269688,1725562237978,-500.0,0.00014,2]
[337269689,1725562237989,-500.0,0.00014,2]
[337269690,1725562238000,-500.0,0.00014,2]
[337269691,1725562238011,-500.0,0.00014,2]
[337269692,1725562238020,-500.0,0.00014,2]
[337269693,1725562238030,-500.0,0.00014,2]
[337269694,1725562238039,-500.0,0.00014,2]
[337269695,1725562238049,-500.0,0.00014,2]
[337269696,1725562238060,-500.0,0.00014,2]
[337269697,1725562238070,-500.0,0.00014,2]
[337269698,1725562238080,-500.0,0.00014,2]
[337269699,1725562238090,-472.24250119,0.00014,2]
[337269700,1725562238119,-27.75749881,0.00014,2]
[337269702,1725562238129,-500.0,0.00014,2]
[337269703,1725562238139,-500.0,0.00014,2]
[337269704,1725562238149,-500.0,0.00014,2]
[337269705,1725562238159,-500.0,0.00014,2]
[337269706,1725562238168,-487.71648794,0.00014,2]
[337269707,1725562238180,-12.28351206,0.00014,2]
[337269708,1725562238190,-571.29,0.00014,2]
[337269709,1725562238199,-252.60993307,0.00014,2]
[337269710,1725562238211,-247.39006693,0.00014,2]
[337269711,1725562238222,-500.0,0.00014,2]
[337269712,1725562238231,-500.0,0.00014,2]
[337269713,1725562238240,-500.0,0.00014,2]
[337269714,1725562238249,-500.0,0.00014,2]
[337269715,1725562238259,-500.0,0.00014,2]
[337269716,1725562238268,-500.0,0.00014,2]
[337269717,1725562238277,-500.0,0.00014,2]
[337269718,1725562238287,-500.0,0.00014,2]
[337269719,1725562238296,-500.0,0.00014,2]
[337269720,1725562238304,-62.62003034,0.00014,2]
[337269721,1725562238317,-437.37996966,0.00014,2]
[337269722,1725562238326,-500.0,0.00014,2]
[337269723,1725562238335,-500.0,0.00014,2]
[337269724,1725562238344,-500.0,0.00014,2]
[337269725,1725562238353,-500.0,0.00014,2]
[337269726,1725562238362,-500.0,0.00014,2]
[337269727,1725562238371,-500.0,0.00014,2]
[337269728,1725562238380,-500.0,0.00014,2]
[337269729,1725562238391,-500.0,0.00014,2]
[337269730,1725562238400,-500.0,0.00014,2]
[337269731,1725562238411,-134.50940225,0.00014,2]
[337269732,1725562238423,-365.49059775,0.00014,2]
[337269733,1725562238433,-500.0,0.00014,2]
[337269734,1725562238442,-179.13004139,0.00014,2]
[337269735,1725562238454,-320.86995861,0.00014,2]
[337269736,1725562238463,-500.0,0.00014,2]
[337269737,1725562238472,-500.0,0.00014,2]
[337269738,1725562238482,-500.0,0.00014,2]
[337269739,1725562238491,-500.0,0.00014,2]
[337269740,1725562238500,-500.0,0.00014,2]
[337269741,1725562238510,-500.0,0.00014,2]
[337269742,1725562238519,-500.0,0.00014,2]
[337269743,1725562238529,-176.82468184,0.00014,2]
[337269744,1725562238541,-432.78531816,0.00014,2]
[337269745,1725562238550,-398.65077483,0.00014,2]
[337269757,1725562239619,-101.34922517,0.00014,2]
[337269758,1725562239630,-646.0,0.00014155,2]
[337269759,1725562239640,-193.2808603,0.00014693,2]
[337269760,1725562239649,-2563.51421453,0.00014694,2]
[337269761,1725562239660,-322.56152394,0.00014694,2]
[337269762,1725562239672,-3868.2,0.00014694,2]
[337269763,1725562239685,-1873.3,0.00014694,2]
[337269764,1725562239697,-623.83995378,0.00014694,2]
[337269765,1725562239709,-6356.23636126,0.00014694,2]
[337269766,1725562239721,-743.53229244,0.00014694,2]
[337269767,1725562239732,-3705.05,0.00014694,2]
[337269768,1725562239744,-1568.29552831,0.00014694,2]
[337269769,1725562239756,-1134.88,0.00014694,2]
[337269770,1725562239768,-424.16972807,0.00014694,2]
[337269771,1725562239797,-1367.76559331,0.00014694,2]
[337269787,1725562242574,-377.11693109,0.00014694,2]
[337269788,1725562242819,-653.31270692,0.00014694,2]
[337269789,1725562242831,-457.46219434,0.00014694,2]
[337269790,1725562242843,-265.6000002,0.00014694,2]
[337269791,1725562242855,-2911.82163197,0.00014694,2]
[337269792,1725562242867,-1079.31918,0.00014694,2]
[337269801,1725562245620,-668.30843146,0.00014237,2]
[337269802,1725562245632,-973.24910627,0.00014237,2]
[337269803,1725562245713,-1342.24045551,0.00014237,2]
[337269804,1725562512870,609.4,0.00011967,2]
[337269805,1725562651695,291.63,0.00010959,2]
[337269806,1725562747801,750.0,0.00011,2]
[337269807,1725562748919,800.0,0.00013,2]
[337269808,1725563038927,578.93,0.00011918,2]
[337269812,1725563431684,-250.0,0.00013787,2]
[337269814,1725563431693,-182.66,0.00013799,2]
[337269816,1725563431703,-234.77,0.00013818,2]
[337269818,1725563431712,-1149.6235657,0.00013819,2]
[337269821,1725563431800,-5463.35600862,0.00013819,2]
[337269822,1725563431813,-319.86038199,0.00013819,2]
[337269823,1725563431824,-397.08384421,0.00013819,2]
[337269824,1725563431839,-592.23120937,0.00013819,2]
[337269825,1725563431879,-1578.55756815,0.00013819,2]
[337269826,1725563431912,-822.5,0.00013819,2]
[337269827,1725563431924,-258.76851609,0.00013819,2]
[337269836,1725563437715,-1451.33807564,0.00013819,2]
[337269837,1725563437854,-988.08183481,0.00013819,2]
[337269838,1725563437866,-2146.04516267,0.00013819,2]
[337269839,1725563437875,-41.44349547,0.0001382,2]
[337269840,1725563437991,-1216.02192436,0.0001382,2]
[337269841,1725563439745,-753.83647302,0.0001382,2]
[337269842,1725563439790,-526.41,0.0001382,2]
[337269843,1725563439830,-2907.35441278,0.0001382,2]
[337269844,1725563439841,-462.11370029,0.0001382,2]
[337269845,1725563439973,-1270.32168049,0.0001382,2]
[337269846,1725563440005,-306.09729367,0.0001382,2]
[337269847,1725563440016,-3249.95340702,0.0001382,2]
[337269848,1725563440127,-754.17412895,0.0001382,2]
[337269861,1725563442863,-338.94299958,0.0001382,2]
[337269901,1725563544076,578.01,0.00011953,2]
[337269902,1725563830513,2009.0364101,0.00027,120]
[337269903,1725564033548,549.1,0.00011837,2]
[337269905,1725564153985,157.87,0.00010959,2]
[337269906,1725564354818,766.86619472,0.00013198,2]
[337269915,1725564569438,750.0,0.00011,2]
[337269916,1725564570523,800.0,0.00013,2]
[337269920,1725564591620,521.64,0.00011808,2]
[337269931,1725564631822,-163.93,0.00013669,2]
[337269932,1725564631831,-250.0,0.00013686,2]
[337269934,1725564631840,-251.19228065,0.00013724,2]
[337269937,1725564631890,-108.80771935,0.00013724,2]
[337269938,1725564631900,-300.0,0.00013744,2]
[337269939,1725564631909,-534.28310631,0.00013745,2]
[337269940,1725564631920,-695.61845475,0.00013745,2]
[337269941,1725564631974,-658.25,0.00013745,2]
[337269942,1725564632048,-406.77852015,0.00013745,2]
[337269943,1725564632100,-4790.59023949,0.00013745,2]
[337269944,1725564632112,-2109.43741355,0.00013745,2]
[337269945,1725564632124,-301.2900896,0.00013745,2]
[337269946,1725564632135,-8674.04466553,0.00013745,2]
[337269947,1725564632155,-4076.77251985,0.00013745,2]
[337269948,1725564632166,-1652.93499077,0.00013745,2]
[337269949,1725564632176,-640.0,0.00013779,2]
[337269950,1725564632186,-273.19260989,0.0001382,2]
[337269951,1725564632199,-1552.423596,0.0001382,2]
[337269952,1725564632216,-1174.38379411,0.0001382,2]
[337269953,1725564632226,-9042.07,0.00013821,2]
[337269954,1725564632235,-44.4211193,0.00013865,2]
[337269955,1725564632246,-106.2588807,0.00013865,2]
[337269956,1725564632255,-268.85,0.00013866,2]
[337269957,1725564632265,-868.19346111,0.0001398,2]
[337269958,1725564632275,-1731.28504997,0.0001398,2]
[337269959,1725564632288,-400.52148892,0.0001398,2]
[337269960,1725564632297,-150.0,0.00013998,2]
[337269961,1725564632307,-88.01347546,0.00013999,2]
[337269962,1725564637897,-281.55,0.00013744,2]
[337269963,1725564637908,-573.2828905,0.00013744,2]
[337269964,1725564637924,-594.5,0.00013744,2]
[337269965,1725564637936,-904.37861541,0.00013744,2]
[337269966,1725564637945,-411.98652454,0.00013999,2]
[337269967,1725564637954,-500.0,0.00013999,2]
[337269968,1725564637964,-500.0,0.00013999,2]
[337269969,1725564637973,-500.0,0.00013999,2]
[337269970,1725564637983,-500.0,0.00013999,2]
[337269971,1725564637993,-500.0,0.00013999,2]
[337269972,1725564638002,-184.98,0.00013999,2]
[337269973,1725564638011,-500.0,0.00013999,2]
[337269974,1725564638023,-500.0,0.00013999,2]
[337269975,1725564638032,-500.0,0.00013999,2]
[337269976,1725564638041,-500.0,0.00013999,2]
[337269977,1725564638052,-500.0,0.00013999,2]
[337269978,1725564638062,-500.0,0.00013999,2]
[337269979,1725564638072,-500.0,0.00013999,2]
[337269980,1725564638081,-500.0,0.00013999,2]
[337269981,1725564638092,-500.0,0.00013999,2]
[337269982,1725564638101,-500.0,0.00013999,2]
[337269983,1725564638111,-500.0,0.00013999,2]
[337269984,1725564638120,-500.0,0.00013999,2]
[337269985,1725564638130,-500.0,0.00013999,2]
[337269986,1725564638139,-500.0,0.00013999,2]
[337269987,1725564638149,-500.0,0.00013999,2]
[337269988,1725564638159,-500.0,0.00013999,2]
[337269989,1725564638168,-500.0,0.00013999,2]
[337269990,1725564638177,-618.22,0.00013999,2]
[337269991,1725564638186,-500.0,0.00013999,2]
[337269992,1725564638195,-500.0,0.00013999,2]
[337269993,1725564638204,-500.0,0.00013999,2]
[337269994,1725564638214,-500.0,0.00013999,2]
[337269995,1725564638223,-500.0,0.00013999,2]
[337269996,1725564638233,-500.0,0.00013999,2]
[337269997,1725564638242,-500.0,0.00013999,2]
[337269998,1725564638252,-500.0,0.00013999,2]
[337269999,1725564638261,-500.0,0.00013999,2]
[337270000,1725564638271,-500.0,0.00013999,2]
[337270001,1725564638280,-188.27,0.00013999,2]
[337270002,1725564638289,-500.0,0.00013999,2]
[337270003,1725564638298,-21.64575217,0.00014072,2]
[337270004,1725564638310,-499.99424783,0.00014072,2]
[337270005,1725564638320,-203.01930376,0.000142,2]
[337270006,1725564638332,-196.98069624,0.000142,2]
[337270007,1725564638341,-400.0,0.000142,2]
[337270008,1725564638350,-400.0,0.000142,2]
[337270010,1725564638360,-400.0,0.000142,2]
[337270012,1725564638369,-400.0,0.000142,2]
[337270014,1725564638379,-54.3606044,0.000142,2]
[337270015,1725564638390,-345.6393956,0.000142,2]
[337270016,1725564638399,-384.18289192,0.000142,2]
[337270017,1725564638410,-15.81710808,0.000142,2]
[337270018,1725564638419,-273.58315482,0.000142,2]
[337270019,1725564638430,-126.41684518,0.000142,2]
[337270020,1725564638439,-400.0,0.000142,2]
[337270022,1725564638448,-187.10404603,0.000142,2]
[337270024,1725564638459,-212.89595397,0.000142,2]
[337270025,1725564638468,-400.0,0.000142,2]
[337270027,1725564638477,-362.5418513,0.000142,2]
[337270028,1725564638488,-37.4581487,0.000142,2]
[337270029,1725564638497,-400.0,0.000142,2]
[337270030,1725564638507,-400.0,0.000142,2]
[337270031,1725564638516,-400.0,0.000142,2]
[337270032,1725564638525,-400.0,0.000142,2]
[337270033,1725564638534,-400.0,0.000142,2]
[337270034,1725564638543,-145.70611678,0.000142,2]
[337270035,1725564638554,-254.29388322,0.000142,2]
[337270036,1725564638563,-184.44167403,0.000142,2]
[337270037,1725564638574,-215.55832597,0.000142,2]
[337270038,1725564638583,-961.44167403,0.00014237,2]
[337270039,1725564638594,-1123.61102995,0.00014237,2]
[337270040,1725564638603,-3000.0,0.000143,2]
[337270041,1725564638612,-1483.5472533,0.00014329,2]
[337270042,1725564638622,-330.45236944,0.00014329,2]
[337270043,1725564638633,-1153.09488385,0.00014329,2]
[337270044,1725564638642,-3000.0,0.0001461,2]
[337270045,1725564638651,-200.0,0.00014694,2]
[337270046,1725564638660,-155.59736033,0.0001474,2]
[337270047,1725564638669,-150.0,0.00014789,2]
[337270048,1725564638678,-200.0,0.00014841,2]
[337270049,1725564638686,-1769.61215525,0.0001488,2]
[337270050,1725564638698,-730.38784475,0.0001488,2]
[337270051,1725564638708,-92.10233072,0.00014882,2]
[337270052,1725564638718,-450.87290596,0.00014882,2]
[337270053,1725564638729,-358.33485164,0.00014882,2]
[337270054,1725564638744,-6576.60581168,0.00014882,2]
[337270055,1725564638753,-1723.4823,0.00014882,2]
[337270056,1725564638763,-1000.0,0.00014883,2]
[337270057,1725564638772,-164.72161916,0.00014884,2]
[337270058,1725564638782,-1000.0,0.00014885,2]
[337270059,1725564638791,-8252.18114552,0.00014885,2]
[337270060,1725564638802,-3524.79836481,0.00014885,2]
[337270061,1725564638815,-464.49215407,0.00014885,2]
[337270062,1725564638835,-4467.7833356,0.00014885,2]
[337270063,1725564638844,-6077.0,0.00014885,2]
[337270064,1725564638853,-164.99535302,0.0001489,2]
[337270065,1725564638862,-1037.483,0.00014894,2]
[337270066,1725564638873,-362.935,0.00014894,2]
[337270067,1725564638882,-202.9393343,0.00014894,2]
[337270068,1725564638891,-246.59391934,0.00014895,2]
[337270069,1725564638900,-153.66948665,0.00014896,2]
[337270070,1725564638909,-150.0,0.000149,2]
[337270071,1725564638921,-1000.0,0.000149,2]
[337270072,1725564638930,-3000.0,0.0001492,2]
[337270073,1725564638939,-150.0,0.00014934,2]
[337270074,1725564638948,-500.0,0.00014973,2]
[337270075,1725564638958,-11318.4284092,0.00014977,3]
[337270076,1725564638969,-3398.68446439,0.00014977,3]
[337270077,1725564638980,-285.49172499,0.00014977,3]
[337270078,1725564638992,-441.16936282,0.00014977,3]
[337270079,1725564639002,-217.70770138,0.00014977,3]
[337270080,1725564639013,-282.04696975,0.00014977,3]
[337270081,1725564639025,-566.76354058,0.00014977,3]
[337270082,1725564639036,-544.01346895,0.00014977,3]
[337270083,1725564639047,-1357.22542988,0.00014977,3]
[337270084,1725564639058,-2084.0327375,0.00014977,3]
[337270085,1725564639069,-2158.98320904,0.00014977,3]